[Event "Romanian-ch Youth Girls U14 2024"]
[Site "Eforie Nord"]
[Date "2024.04.17"]
[Round "7.2"]
[White "Ciocirlan, Bianca-Alexandra"]
[Black "Semenova, Vasylyna"]
[Result "0-1"]
[ECO "B16"]
[WhiteElo "1740"]
[BlackElo "1827"]
[Annotator "NA RC COMBH"]
[PlyCount "228"]
[EventDate "2024.04.10"]
[EventType "swiss"]
[EventCountry "ROU"]
[SourceTitle "playchess.com"]
[Source "ChessBase"]
[SourceQuality "1"]
[TimeControl "5400+30"]

1. e4 {[%emt 0:00:02]} c6 {[%emt 0:00:05]} 2. d4 {[%emt 0:00:05]} d5 {[%emt 0:00:07]} 3. Nc3 {[%emt 0:00:05]} dxe4 {[%emt 0:00:05]} 4. Nxe4 {[%emt 0:00:09]} Nf6 {[%emt 0:00:06]} 5. Nxf6+ {[%emt 0:00:05]} gxf6 {[%emt 0:00:16]} 6. c3 {[%emt 0:00:39]} Bf5 {[%emt 0:00:16]} 7. Nf3 {[%emt 0:00:41]} e6 {[%emt 0:00:22]} 8. g3 {[%emt 0:00:37]} Bd6 {[%emt 0:00:33]} 9. Bg2 {[%emt 0:00:13]} Nd7 {[%emt 0:00:09]} 10. O-O {[%emt 0:00:43]} Qc7 {[%emt 0:00:27]} 11. Nh4 {[%emt 0:01:26]} Bg6 {[%emt 0:00:27]} 12. Qe2 {[%emt 0:02:41]} O-O-O {[%emt 0:00:43]} 13. c4 {[%emt 0:01:55]} e5 {[%emt 0:14:17]} 14. c5 {[%emt 0:10:27]} Bf8 {[%emt 0:02:11]} 15. d5 {[%emt 0:18:04]} cxd5 {[%emt 0:00:19]} 16. b4 {[%emt 0:02:53]} d4 {[%emt 0:08:31]} 17. Nxg6 {[%emt 0:03:27]} hxg6 {[%emt 0:00:19]} 18. Bd2 {[%emt 0:04:30]} Nb8 {[%emt 0:01:13]} 19. Rac1 {[%emt 0:08:54]} f5 {[%emt 0:01:28]} 20. Bg5 {[%emt 0:05:38]} Re8 {[%emt 0:01:32]} 21. Qc4 {[%emt 0:04:44]} Bh6 {[%emt 0:00:51]} 22. Bxh6 {[%emt 0:02:08]} Rxh6 {[%emt 0:00:07]} 23. b5 {[%emt 0:02:59]} e4 {[%emt 0:03:30]} 24. Qxd4 {[%emt 0:03:58]} Qe5 {[%emt 0:03:46]} 25. Qd6 {[%emt 0:03:16]} Nd7 {[%emt 0:07:20]} 26. Rfd1 {[%emt 0:07:41]} Qxd6 {[%emt 0:00:41]} 27. cxd6+ {[%emt 0:00:28]} Kb8 {[%emt 0:01:14]} 28. Rc7 {[%emt 0:00:49]} Rd8 {[%emt 0:00:12]} 29. f3 {[%emt 0:07:02]} g5 {[%emt 0:00:34]} 30. Rc3 {[%emt 0:01:22]} Ne5 {[%emt 0:20:48]} 31. fxe4 {[%emt 0:02:48]} fxe4 {[%emt 0:05:28]} 32. d7 {[%emt 0:00:42]} Rxd7 {[%emt 0:01:12]} 33. Rdc1 {[%emt 0:00:29]} Rd8 {[%emt 0:03:19]} 34. Bxe4 {[%emt 0:00:46]} Rhd6 {[%emt 0:00:18]} 35. R3c2 {[%emt 0:02:19]} Rd1+ {[%emt 0:01:15]} 36. Rxd1 {[%emt 0:01:21]} Rxd1+ {[%emt 0:00:04]} 37. Kg2 {[%emt 0:00:23]} g4 {[%emt 0:06:02]} 38. Bf5 {[%emt 0:00:19]} b6 {[%emt 0:01:22]} 39. Re2 {[%emt 0:00:27]} f6 {[%emt 0:00:06]} 40. h4 {[%emt 0:01:22]} gxh3+ {[%emt 0:00:09]} 41. Bxh3 {[%emt 0:02:23]} Kc7 {[%emt 0:01:04]} 42. Rf2 {[%emt 0:00:00]} Rd6 {[%emt 0:00:19]} 43. Rc2+ {[%emt 0:00:00]} Kb7 {[%emt 0:00:19]} 44. Bc8+ {[%emt 0:00:00]} Kb8 {[%emt 0:00:14]} 45. Bf5 {[%emt 0:00:00]} Rd5 {[%emt 0:01:59]} 46. Rc8+ {[%emt 0:00:59]} Kb7 {[%emt 0:00:05]} 47. Be4 {[%emt 0:00:18]} Kxc8 {[%emt 0:00:04]} 48. Bxd5 {[%emt 0:00:05]} Kd7 {[%emt 0:00:10]} 49. Kf2 {[%emt 0:01:08]} Kd6 {[%emt 0:00:09]} 50. Bb3 {[%emt 0:00:27]} Nd7 {[%emt 0:02:18]} 51. Ke3 {[%emt 0:00:45]} Ke5 {[%emt 0:00:04]} 52. Bg8 {[%emt 0:00:55]} f5 {[%emt 0:01:32]} 53. Bf7 {[%emt 0:00:38]} Nf6 {[%emt 0:01:06]} 54. Kf3 {[%emt 0:00:27]} Ne4 {[%emt 0:00:10]} 55. Bg8 {[%emt 0:00:24]} Nd6 {[%emt 0:00:24]} 56. a4 {[%emt 0:00:40]} Ne4 {[%emt 0:00:24]} 57. Ba2 {[%emt 0:00:30]} Nc5 {[%emt 0:01:47]} 58. Bf7 {[%emt 0:00:10]} Nxa4 {[%emt 0:00:06]} 59. Be8 {[%emt 0:00:11]} Nc5 {[%emt 0:00:22]} 60. Bc6 {[%emt 0:00:19]} Ne6 {[%emt 0:00:19]} 61. Ke3 {[%emt 0:01:14]} Ng5 {[%emt 0:01:37]} 62. Be8 {[%emt 0:00:34]} Ne4 {[%emt 0:00:14]} 63. Kf3 {[%emt 0:00:09]} Nf6 {[%emt 0:00:50]} 64. Bc6 {[%emt 0:00:10]} Ng8 {[%emt 0:00:20]} 65. Ke3 {[%emt 0:00:39]} Ne7 {[%emt 0:00:08]} 66. Bg2 {[%emt 0:00:58]} Ng6 {[%emt 0:00:05]} 67. Bc6 {[%emt 0:00:17]} f4+ {[%emt 0:00:13]} 68. gxf4+ {[%emt 0:00:06]} Nxf4 {[%emt 0:00:05]} 69. Be8 {[%emt 0:00:54]} Ne6 {[%emt 0:00:22]} 70. Kd3 {[%emt 0:00:47]} Nc7 {[%emt 0:02:15]} 71. Bc6 {[%emt 0:00:31]} Nd5 {[%emt 0:00:18]} 72. Kc4 {[%emt 0:00:20]} Ne3+ {[%emt 0:00:50]} 73. Kd3 {[%emt 0:00:25]} Nf5 {[%emt 0:00:46]} 74. Kc4 {[%emt 0:00:31]} Ne7 {[%emt 0:00:51]} 75. Be8 {[%emt 0:00:20]} Ke4 {[%emt 0:00:11]} 76. Bc6+ {[%emt 0:00:38]} Ke3 {[%emt 0:00:28]} 77. Kc3 {[%emt 0:00:51]} a5 {[%emt 0:02:56]} 78. Be8 {[%emt 0:00:32]} Ke4 {[%emt 0:00:22]} 79. Bf7 {[%emt 0:00:22]} Nd5+ {[%emt 0:00:27]} 80. Kc4 {[%emt 0:00:20]} Nc7 {[%emt 0:00:18]} 81. Bg6+ {[%emt 0:00:31]} Ke3 {[%emt 0:00:14]} 82. Bc2 {[%emt 0:00:43]} Kd2 {[%emt 0:00:09]} 83. Ba4 {[%emt 0:00:17]} Ke3 {[%emt 0:04:32]} 84. Bc2 {[%emt 0:00:27]} Kf4 {[%emt 0:00:21]} 85. Bd1 {[%emt 0:00:46]} Ke5 {[%emt 0:00:16]} 86. Be2 {[%emt 0:00:33]} Ne8 {[%emt 0:00:14]} 87. Bf1 {[%emt 0:00:30]} Nd6+ {[%emt 0:00:05]} 88. Kc3 {[%emt 0:00:19]} Kd5 {[%emt 0:00:18]} 89. Kb3 {[%emt 0:00:25]} Kc5 {[%emt 0:00:13]} 90. Ka4 {[%emt 0:00:21]} Ne4 {[%emt 0:00:15]} 91. Bd3 {[%emt 0:00:47]} Nc3+ {[%emt 0:00:04]} 92. Kb3 {[%emt 0:00:06]} Nxb5 {[%emt 0:00:04]} 93. Ka4 {[%emt 0:00:25]} Na7 {[%emt 0:00:28]} 94. Bf1 {[%emt 0:00:17]} Nc6 {[%emt 0:00:14]} 95. Bb5 {[%emt 0:00:39]} Ne7 {[%emt 0:00:06]} 96. Be8 {[%emt 0:00:30]} Nd5 {[%emt 0:00:07]} 97. Bd7 {[%emt 0:00:40]} Ne3 {[%emt 0:02:44]} 98. Be8 {[%emt 0:00:23]} Nd5 {[%emt 0:00:26]} 99. Bd7 {[%emt 0:00:13]} Kd6 {[%emt 0:00:04]} 100. Bh3 {[%emt 0:00:57]} Kc6 {[%emt 0:01:23]} 101. Bg2 {[%emt 0:00:28]} Kc5 {[%emt 0:00:20]} 102. Bf1 {[%emt 0:00:37]} Nc3+ {[%emt 0:00:20]} 103. Kb3 {[%emt 0:00:16]} Nd1 {[%emt 0:00:27]} 104. Ka4 {[%emt 0:00:52]} Ne3 {[%emt 0:00:23]} 105. Ba6 {[%emt 0:00:24]} Nc4 {[%emt 0:00:12]} 106. Bc8 {[%emt 0:00:46]} b5+ {[%emt 0:00:05]} 107. Kb3 {[%emt 0:00:10]} a4+ {[%emt 0:00:16]} 108. Ka2 {[%emt 0:00:33]} b4 {[%emt 0:00:20]} 109. Bf5 {[%emt 0:00:42]} b3+ {[%emt 0:00:08]} 110. Ka1 {[%emt 0:00:21]} Kb4 {[%emt 0:00:35]} 111. Bd3 {[%emt 0:00:44]} a3 {[%emt 0:00:14]} 112. Bh7 {[%emt 0:00:29]} a2 {[%emt 0:03:00]} 113. Bc2 {[%emt 0:00:42]} bxc2 {[%emt 0:00:13]} 114. Kxa2 {[%emt 0:00:06]} Kc3 {[%emt 0:00:18]} 0-1

[Event "Romanian-ch Youth Girls U14 2024"]
[Site "Eforie Nord"]
[Date "2024.04.18"]
[Round "8.1"]
[White "Ionescu, Daria S."]
[Black "Aldea, Maria-Antonia"]
[Result "0-1"]
[ECO "A47"]
[WhiteElo "1592"]
[BlackElo "1894"]
[Annotator "NA RC COMBH"]
[PlyCount "72"]
[EventDate "2024.04.10"]
[EventType "swiss"]
[EventCountry "ROU"]
[SourceTitle "playchess.com"]
[Source "ChessBase"]
[SourceQuality "1"]
[TimeControl "5400+30"]

1. d4 {[%emt 0:00:04]} Nf6 {[%emt 0:00:08]} 2. Nf3 {[%emt 0:00:36]} b6 {[%emt 0:00:05]} 3. Bf4 {[%emt 0:00:56]} Bb7 {[%emt 0:00:08]} 4. e3 {[%emt 0:00:45]} d6 {[%emt 0:01:18]} 5. Nbd2 {[%emt 0:02:24]} g6 {[%emt 0:01:19]} 6. Bd3 {[%emt 0:00:39]} c5 {[%emt 0:00:54]} 7. c3 {[%emt 0:07:13]} Bg7 {[%emt 0:01:27]} 8. Qc2 {[%emt 0:04:28]} Nc6 {[%emt 0:04:51]} 9. h4 {[%emt 0:11:35]} Rc8 {[%emt 0:07:03]} 10. Be2 {[%emt 0:12:42]} Qd7 {[%emt 0:06:57]} 11. Rg1 {[%emt 0:21:50]} Nd5 {[%emt 0:03:46]} 12. Bh2 {[%emt 0:06:59]} cxd4 {[%emt 0:00:15]} 13. exd4 {[%emt 0:01:10]} Nxd4 {[%emt 0:01:25]} 14. Nxd4 {[%emt 0:02:56]} Bxd4 {[%emt 0:00:04]} 15. Qd3 {[%emt 0:02:16]} Bg7 {[%emt 0:01:50]} 16. g4 {[%emt 0:04:23]} Nc7 {[%emt 0:04:10]} 17. g5 {[%emt 0:01:18]} Ba6 {[%emt 0:00:58]} 18. Qf3 {[%emt 0:02:03]} Bxe2 {[%emt 0:02:10]} 19. Qxe2 {[%emt 0:00:21]} Qe6 {[%emt 0:00:34]} 20. Qxe6 {[%emt 0:15:52]} Nxe6 {[%emt 0:00:24]} 21. O-O-O {[%emt 0:00:00]} h5 {[%emt 0:06:04]} 22. Ne4 {[%emt 0:00:00]} O-O {[%emt 0:00:34]} 23. f4 {[%emt 0:00:00]} Nc5 {[%emt 0:01:21]} 24. Rge1 {[%emt 0:00:00]} Nxe4 {[%emt 0:02:00]} 25. Rxe4 {[%emt 0:00:00]} Rfe8 {[%emt 0:00:14]} 26. Rde1 {[%emt 0:00:00]} Bf8 {[%emt 0:01:05]} 27. Bg1 {[%emt 0:00:00]} d5 {[%emt 0:02:41]} 28. Re5 {[%emt 0:00:00]} e6 {[%emt 0:00:10]} 29. Rf1 {[%emt 0:00:00]} Bg7 {[%emt 0:02:54]} 30. Re2 {[%emt 0:01:15]} d4 {[%emt 0:04:07]} 31. Rd2 {[%emt 0:00:57]} dxc3 {[%emt 0:00:33]} 32. bxc3 {[%emt 0:00:04]} Rxc3+ {[%emt 0:02:19]} 33. Kb1 {[%emt 0:00:04]} Rec8 {[%emt 0:04:22]} 34. Rd7 {[%emt 0:00:16]} R8c4 {[%emt 0:01:08]} 35. Rd8+ {[%emt 0:02:01]} Kh7 {[%emt 0:00:04]} 36. a3 {[%emt 0:00:35]} Rxa3 {[%emt 0:00:57]} 0-1

[Event "Romanian-ch Youth Girls U14 2024"]
[Site "Eforie Nord"]
[Date "2024.04.18"]
[Round "8.2"]
[White "Semenova, Vasylyna"]
[Black "Isopescu, Iulia Elena"]
[Result "1-0"]
[ECO "D27"]
[WhiteElo "1827"]
[BlackElo "1692"]
[Annotator "NA RC COMBH"]
[PlyCount "87"]
[EventDate "2024.04.10"]
[EventType "swiss"]
[EventCountry "ROU"]
[SourceTitle "playchess.com"]
[Source "ChessBase"]
[SourceQuality "1"]
[TimeControl "5400+30"]

1. Nf3 {[%emt 0:00:01]} d5 {[%emt 0:00:22]} 2. d4 {[%emt 0:00:06]} Nf6 {[%emt 0:00:28]} 3. c4 {[%emt 0:00:08]} dxc4 {[%emt 0:00:26]} 4. e3 {[%emt 0:00:25]} e6 {[%emt 0:00:53]} 5. Bxc4 {[%emt 0:00:06]} a6 {[%emt 0:00:59]} 6. a4 {[%emt 0:00:50]} c5 {[%emt 0:01:20]} 7. O-O {[%emt 0:00:41]} Nc6 {[%emt 0:01:49]} 8. Nc3 {[%emt 0:00:54]} Be7 {[%emt 0:06:30]} 9. Qd3 {[%emt 0:04:48]} O-O {[%emt 0:04:19]} 10. Rd1 {[%emt 0:00:07]} Qc7 {[%emt 0:05:42]} 11. Qe2 {[%emt 0:00:33]} Rd8 {[%emt 0:02:28]} 12. b3 {[%emt 0:06:21]} cxd4 {[%emt 0:26:33]} 13. exd4 {[%emt 0:00:43]} Na5 {[%emt 0:02:26]} 14. Bb2 {[%emt 0:00:40]} Nxc4 {[%emt 0:01:11]} 15. bxc4 {[%emt 0:00:31]} b6 {[%emt 0:01:44]} 16. Ne5 {[%emt 0:05:57]} Bb7 {[%emt 0:02:37]} 17. Rd3 {[%emt 0:05:58]} Rac8 {[%emt 0:04:18]} 18. Na2 {[%emt 0:07:47]} Nd7 {[%emt 0:04:28]} 19. Nxd7 {[%emt 0:01:00]} Rxd7 {[%emt 0:02:21]} 20. Rc1 {[%emt 0:01:24]} Rcd8 {[%emt 0:09:58]} 21. d5 {[%emt 0:09:25]} exd5 {[%emt 0:04:06]} 22. cxd5 {[%emt 0:02:43]} Qf4 {[%emt 0:01:57]} 23. Rg3 {[%emt 0:03:57]} Bf8 {[%emt 0:02:40]} 24. Rc4 {[%emt 0:05:27]} Qh6 {[%emt 0:03:20]} 25. Rcg4 {[%emt 0:11:34]} f5 {[%emt 0:04:44]} 26. Rg5 {[%emt 0:03:42]} Bxd5 {[%emt 0:02:30]} 27. Be5 {[%emt 0:10:10]} Be4 {[%emt 0:02:24]} 28. h3 {[%emt 0:02:14]} g6 {[%emt 0:00:55]} 29. Nc3 {[%emt 0:03:40]} Bd3 {[%emt 0:00:36]} 30. Qa2+ {[%emt 0:00:33]} Rf7 {[%emt 0:00:22]} 31. Nd5 {[%emt 0:00:38]} Rxd5 {[%emt 0:00:36]} 32. Qxd5 {[%emt 0:00:26]} Be4 {[%emt 0:00:13]} 33. Qe6 {[%emt 0:02:11]} Bg7 {[%emt 0:00:34]} 34. Qc8+ {[%emt 0:09:02]} Rf8 {[%emt 0:00:29]} 35. Qe6+ {[%emt 0:00:40]} Rf7 {[%emt 0:00:07]} 36. Rxg6 {[%emt 0:00:28]} hxg6 {[%emt 0:00:48]} 37. Rxg6 {[%emt 0:00:05]} Qh8 {[%emt 0:00:50]} 38. Rxg7+ {[%emt 0:00:48]} Qxg7 {[%emt 0:01:27]} 39. Bxg7 {[%emt 0:00:06]} Kxg7 {[%emt 0:00:00]} 40. Qxb6 {[%emt 0:00:06]} Rf6 {[%emt 0:00:00]} 41. Qa7+ {[%emt 0:00:09]} Kh6 {[%emt 0:00:00]} 42. a5 {[%emt 0:00:06]} Rg6 {[%emt 0:00:04]} 43. Qe3+ {[%emt 0:00:18]} Kh7 {[%emt 0:00:20]} 44. f3 {[%emt 0:00:17]} 1-0

[Event "Romanian-ch Youth Girls U14 2024"]
[Site "Eforie Nord"]
[Date "2024.04.19"]
[Round "9.1"]
[White "Aldea, Maria-Antonia"]
[Black "Moldovan, Maia-Rut"]
[Result "1-0"]
[ECO "D02"]
[WhiteElo "1894"]
[BlackElo "1725"]
[Annotator "NA RC COMBH"]
[PlyCount "59"]
[EventDate "2024.04.10"]
[EventType "swiss"]
[EventCountry "ROU"]
[SourceTitle "playchess.com"]
[Source "ChessBase"]
[SourceQuality "1"]
[TimeControl "5400+30"]

1. d4 {[%emt 0:00:06]} Nf6 {[%emt 0:00:04]} 2. Nf3 {[%emt 0:00:09]} e6 {[%emt 0:00:10]} 3. g3 {[%emt 0:00:58]} c5 {[%emt 0:00:07]} 4. Bg2 {[%emt 0:01:16]} cxd4 {[%emt 0:00:07]} 5. Nxd4 {[%emt 0:00:17]} d5 {[%emt 0:00:09]} 6. O-O {[%emt 0:01:19]} e5 {[%emt 0:00:11]} 7. Nb3 {[%emt 0:00:04]} Be6 {[%emt 0:03:03]} 8. Bg5 {[%emt 0:09:02]} Nbd7 {[%emt 0:06:28]} 9. e4 {[%emt 0:07:05]} d4 {[%emt 0:20:13]} 10. N1d2 {[%emt 0:06:53]} Be7 {[%emt 0:05:15]} 11. Bxf6 {[%emt 0:07:04]} Nxf6 {[%emt 0:02:18]} 12. Nc1 {[%emt 0:00:24]} Rc8 {[%emt 0:05:34]} 13. Nd3 {[%emt 0:01:33]} Qc7 {[%emt 0:00:34]} 14. Rc1 $1 {[%emt 0:05:33]} O-O {[%emt 0:09:32]} (14... Bxa2 $2 {perishes.} 15. c4 $18) 15. a3 {[%emt 0:02:59]} a5 {[%emt 0:05:29]} 16. h3 {[%emt 0:02:06]} g6 {[%emt 0:05:02]} 17. f4 {[%emt 0:12:31]} ({White should play} 17. Nf3 $15) 17... Nh5 {[%emt 0:07:54]} 18. Qe1 {[%emt 0:09:34]} Bd6 $15 {[%emt 0:16:29]} (18... exf4 $17 19. g4 Ng7) 19. f5 {[%emt 0:11:54]} Bd7 {[%emt 0:00:19]} 20. Bf3 {[%emt 0:03:39]} Ng7 {[%emt 0:03:13]} 21. g4 {[%emt 0:01:15]} Qd8 {[%emt 0:02:01]} 22. Bg2 {[%emt 0:04:16]} Bb5 {[%emt 0:03:09]} 23. Nf3 {[%emt 0:03:00]} Qc7 {[%emt 0:01:25]} 24. Qd2 {[%emt 0:03:36]} gxf5 {[%emt 0:02:52]} 25. gxf5 {[%emt 0:00:08]} Qe7 {[%emt 0:00:24]} 26. Qh6 {[%emt 0:04:53]} f6 {[%emt 0:00:54]} 27. Ng5 {[%emt 0:01:32]} Nxf5 {[%emt 0:00:28]} 28. exf5 {[%emt 0:00:36]} fxg5 {[%emt 0:00:16]} 29. f6 {[%emt 0:00:06]} Qf7 {[%emt 0:00:19]} 30. Bd5 {[%emt 0:01:42]} 1-0

[Event "Romanian-ch Youth Girls U14 2024"]
[Site "Eforie Nord"]
[Date "2024.04.19"]
[Round "9.2"]
[White "Semenova, Vasylyna"]
[Black "Sida, Flavia-Maria"]
[Result "1-0"]
[ECO "D00"]
[WhiteElo "1827"]
[BlackElo "1619"]
[Annotator "NA RC COMBH"]
[PlyCount "131"]
[EventDate "2024.04.10"]
[EventType "swiss"]
[EventCountry "ROU"]
[SourceTitle "playchess.com"]
[Source "ChessBase"]
[SourceQuality "1"]
[TimeControl "5400+30"]

1. d4 {[%emt 0:00:03]} Nf6 {[%emt 0:00:06]} 2. Bg5 {[%emt 0:00:04]} d5 {[%emt 0:11:49]} 3. Bxf6 {[%emt 0:00:55]} gxf6 {[%emt 0:04:58]} 4. Nf3 {[%emt 0:00:19]} c5 {[%emt 0:17:29]} 5. e3 {[%emt 0:00:10]} Nc6 {[%emt 0:03:34]} 6. c3 {[%emt 0:00:27]} e5 {[%emt 0:05:14]} 7. dxe5 {[%emt 0:00:28]} fxe5 {[%emt 0:00:42]} 8. Bb5 {[%emt 0:00:21]} Bg7 {[%emt 0:03:26]} 9. O-O {[%emt 0:01:34]} Be6 {[%emt 0:10:39]} 10. Qc2 {[%emt 0:00:31]} e4 {[%emt 0:03:32]} 11. Nfd2 {[%emt 0:00:19]} Qg5 {[%emt 0:09:29]} 12. f4 {[%emt 0:01:44]} exf3 {[%emt 0:03:19]} 13. Rxf3 $17 {[%emt 0:00:48]} (13. Nxf3 $15 Qxe3+ 14. Rf2) 13... Be5 {[%emt 0:00:19]} 14. Nf1 {[%emt 0:02:18]} Rg8 {[%emt 0:01:28]} 15. Qf2 {[%emt 0:09:58]} f6 {[%emt 0:03:22]} 16. h3 {[%emt 0:10:45]} O-O-O {[%emt 0:00:44]} 17. Bxc6 {[%emt 0:00:37]} bxc6 {[%emt 0:00:04]} 18. Nbd2 {[%emt 0:01:56]} Rg7 {[%emt 0:00:37]} 19. Re1 {[%emt 0:06:11]} Rdg8 {[%emt 0:01:29]} 20. Re2 {[%emt 0:00:14]} Qh5 {[%emt 0:00:42]} 21. Kh1 {[%emt 0:10:12]} Bg4 {[%emt 0:02:20]} 22. Nh2 {[%emt 0:14:59]} Bxf3 {[%emt 0:03:56]} 23. Nhxf3 {[%emt 0:02:06]} Bg3 {[%emt 0:01:29]} 24. Qf1 {[%emt 0:00:20]} Qf5 {[%emt 0:01:00]} 25. Nb3 {[%emt 0:00:41]} Bd6 {[%emt 0:01:42]} 26. Rf2 {[%emt 0:01:52]} Qd7 {[%emt 0:04:42]} 27. Na5 {[%emt 0:02:09]} c4 {[%emt 0:02:21]} 28. Nd4 {[%emt 0:11:18]} c5 {[%emt 0:00:27]} 29. Nf5 {[%emt 0:08:12]} Rg6 {[%emt 0:00:35]} 30. Rd2 {[%emt 0:05:29]} Be5 {[%emt 0:01:59]} 31. Nxc4 {[%emt 0:05:02]} Rg5 {[%emt 0:00:53]} 32. e4 {[%emt 0:01:43]} d4 {[%emt 0:00:26]} 33. cxd4 {[%emt 0:02:05]} cxd4 {[%emt 0:00:08]} 34. Na5 {[%emt 0:00:54]} Qe6 {[%emt 0:01:00]} 35. Rc2+ {[%emt 0:00:21]} Bc7 {[%emt 0:01:15]} 36. Qf4 {[%emt 0:00:50]} Qd7 {[%emt 0:00:37]} 37. Qf1 {[%emt 0:00:32]} Qe6 {[%emt 0:00:24]} 38. Qb5 {[%emt 0:00:28]} Rxg2 {[%emt 0:00:41]} 39. Qb7+ {[%emt 0:00:15]} Kd8 {[%emt 0:00:16]} 40. Qxc7+ {[%emt 0:00:28]} Ke8 {[%emt 0:00:04]} 41. Qb8+ {[%emt 0:00:43]} Kf7 {[%emt 0:00:27]} 42. Nh6+ {[%emt 0:00:34]} Ke7 {[%emt 0:00:32]} 43. Qc7+ {[%emt 0:00:31]} Ke8 {[%emt 0:00:37]} 44. Qc8+ {[%emt 0:00:27]} Qxc8 {[%emt 0:01:04]} 45. Rxc8+ {[%emt 0:00:09]} Kd7 {[%emt 0:00:08]} 46. Rxg8 {[%emt 0:00:13]} Rxb2 {[%emt 0:00:08]} 47. Rg3 {[%emt 0:00:34]} Rxa2 {[%emt 0:00:32]} 48. Nc4 {[%emt 0:00:13]} Rc2 {[%emt 0:00:18]} 49. Na3 {[%emt 0:00:31]} Re2 {[%emt 0:00:08]} 50. Rd3 {[%emt 0:00:28]} Rxe4 {[%emt 0:00:10]} 51. Nf5 {[%emt 0:00:19]} Kc6 {[%emt 0:00:51]} 52. Nxd4+ {[%emt 0:00:07]} Kc5 {[%emt 0:00:13]} 53. Ndc2 {[%emt 0:00:11]} a5 {[%emt 0:00:45]} 54. Rd7 {[%emt 0:00:12]} h5 {[%emt 0:00:26]} 55. Rh7 {[%emt 0:00:35]} Re5 {[%emt 0:00:39]} 56. Kg2 {[%emt 0:00:22]} Rg5+ {[%emt 0:00:26]} 57. Kf3 {[%emt 0:00:12]} Kd5 {[%emt 0:00:15]} 58. Ne3+ {[%emt 0:00:19]} Kc5 {[%emt 0:00:15]} 59. Rc7+ {[%emt 0:00:25]} Kb4 {[%emt 0:00:22]} 60. Nac2+ {[%emt 0:00:46]} Kb3 {[%emt 0:00:37]} 61. Rb7+ {[%emt 0:00:39]} Kc3 {[%emt 0:00:14]} 62. Na3 {[%emt 0:00:29]} h4 {[%emt 0:00:46]} 63. Nb5+ {[%emt 0:01:22]} Kb4 {[%emt 0:00:48]} 64. Nd6+ {[%emt 0:00:10]} Ka4 {[%emt 0:00:33]} 65. Ne4 {[%emt 0:00:06]} Rg6 {[%emt 0:01:17]} 66. Nc3+ {[%emt 0:00:04]} 1-0